fUSD/lending_fUSD_20240428
["ID","MTS","AMOUNT","RATE_DAILY","PERIOD"]
[323768532,1714266633108,-1040.50038308,0.00019244,2]
[323768533,1714266633117,-3601.73665418,0.00019347,2]
[323768534,1714266633126,-1000.0,0.00019421,2]
[323768535,1714266633136,-1506.64900483,0.00019564,2]
[323768536,1714266633145,-3421.54256328,0.00019611,2]
[323768537,1714266633155,-800.0,0.00019726,2]
[323768538,1714266633165,-170.44406225,0.00019799,2]
[323768539,1714266633174,-3421.54256328,0.00019808,2]
[323768540,1714266633183,-200.0,0.0001984,2]
[323768541,1714266633193,-156.20020624,0.0001986,2]
[323768542,1714266633202,-202.06403307,0.0001988,2]
[323768543,1714266633211,-150.87,0.0001988,2]
[323768544,1714266633221,-10000.0,0.00019889,2]
[323768545,1714266633230,-1809.22291569,0.00019889,5]
[323768546,1714266633240,-85166.67953015,0.0001989,2]
[323768547,1714266633253,-619.65012665,0.0001989,2]
[323768560,1714266637989,-179.376532,0.00017808,2]
[323768561,1714266638000,-179.376532,0.0001863,2]
[323768562,1714266638010,-15039.34701014,0.0001989,2]
[323768563,1714266638022,-6843.9,0.0001989,2]
[323768564,1714266638033,-3390.0,0.0001989,2]
[323768566,1714266638044,-771.07115909,0.0001989,2]
[323768567,1714266638055,-882.06164822,0.0001989,2]
[323768599,1714266639705,-179.376532,0.00019452,2]
[323768600,1714266639715,-132287.29052575,0.0001989,2]
[323768601,1714266639724,-63381.0526,0.0001989,2]
[323768602,1714266639733,-5144.515,0.0001989,2]
[323768603,1714266639744,-800.0,0.0001989,2]
[323768604,1714266639753,-1506.64900483,0.00019891,2]
[323768605,1714266639762,-243.07256031,0.00019899,2]
[323768606,1714266639771,-252.71720545,0.00019899,2]
[323768607,1714266639780,-500.0,0.00019899,2]
[323768608,1714266639789,-500.0,0.00019899,2]
[323768609,1714266639799,-394.92612547,0.00019899,2]
[323768610,1714266639809,-500.0,0.00019899,2]
[323768611,1714266639818,-500.0,0.00019899,2]
[323768612,1714266639827,-500.0,0.00019899,2]
[323768613,1714266639836,-500.0,0.00019899,2]
[323768614,1714266639845,-500.0,0.00019899,2]
[323768615,1714266639855,-500.0,0.00019899,2]
[323768616,1714266639865,-500.0,0.00019899,2]
[323768617,1714266639874,-500.0,0.00019899,2]
[323768618,1714266639883,-500.0,0.00019899,2]
[323768619,1714266639893,-500.0,0.00019899,2]
[323768620,1714266639902,-500.0,0.00019899,2]
[323768621,1714266639912,-499.99999999,0.00019899,2]
[323768622,1714266639921,-157.83135312,0.000199,2]
[323768623,1714266639930,-652.5349,0.000199,2]
[323768624,1714266639939,-361.45701324,0.00019927,2]
[323768625,1714266639952,-181.32,0.00019963,2]
[323768626,1714266639961,-800.0,0.00019973,2]
[323768627,1714266639970,-150.87,0.00019989,2]
[323768628,1714266639978,-25635.60717984,0.0001999,2]
[323768629,1714266640025,-950.36,0.0001999,2]
[323768630,1714266640038,-5000.0,0.0001999,2]
[323768631,1714266640051,-1625.217,0.0001999,2]
[323768632,1714266640062,-600.5039805,0.0001999,2]
[323768635,1714266640149,-2231.23332662,0.0001999,2]
[323768636,1714266640161,-684.85398182,0.0001999,2]
[323768637,1714266640173,-326.10999999,0.0001999,2]
[323768639,1714266640298,-664.75335024,0.0001999,2]
[323768651,1714266642706,-1000.0,0.00019452,2]
[323768652,1714266642716,-622.50689259,0.0001999,2]
[323768653,1714266642725,-3551.7759466,0.0001999,2]
[323768654,1714266642734,-17767.036896,0.0001999,2]
[323768655,1714266642744,-8053.7754844,0.0001999,2]
[323768656,1714266642754,-151.0,0.0001999,2]
[323768657,1714266642763,-489.174481,0.0001999,2]
[323768658,1714266642773,-489.174481,0.0001999,2]
[323768659,1714266642782,-151.0,0.0001999,2]
[323768660,1714266642791,-151.0,0.0001999,2]
[323768661,1714266642800,-151.0,0.0001999,2]
[323768662,1714266642810,-235.091364,0.0001999,2]
[323768663,1714266642819,-611.378622,0.0001999,2]
[323768664,1714266642829,-611.378622,0.0001999,2]
[323768665,1714266642838,-151.0,0.0001999,2]
[323768666,1714266642847,-151.0,0.0001999,2]
[323768667,1714266642856,-178.566274,0.0001999,2]
[323768668,1714266642865,-151.0,0.0001999,2]
[323768669,1714266642874,-151.0,0.0001999,2]
[323768670,1714266642883,-151.0,0.0001999,2]
[323768671,1714266642892,-151.0,0.0001999,2]
[323768672,1714266642901,-783.757249,0.0001999,2]
[323768673,1714266642910,-783.757249,0.0001999,2]
[323768674,1714266642920,-803.66240074,0.00019999,2]
[323768675,1714266642929,-10000.0,0.00019999,2]
[323768676,1714266642938,-84.00560038,0.0002,2]
[323768677,1714266642947,-300.0,0.0002,2]
[323768678,1714266642956,-294.0,0.0002,2]
[323768679,1714266642965,-867.86582365,0.0002,2]
[323768680,1714266642974,-150.59734758,0.0002,2]
[323768681,1714266642991,-1849.40265242,0.0002,2]
[323768682,1714266643000,-4550.41204758,0.0002,2]
[323768683,1714266643016,-14874.147,0.0002,2]
[323768684,1714266643027,-631.91232894,0.0002,2]
[323768685,1714266643060,-15400.0,0.0002,2]
[323768686,1714266643086,-1574.61549575,0.0002,2]
[323768687,1714266643102,-470.23000002,0.0002,2]
[323768689,1714266645970,-545.81452134,0.00019989,2]
[323768690,1714266645979,-3071.74410546,0.00019989,2]
[323768691,1714266645988,-2488.83528742,0.0002,2]
[323768692,1714266646000,-167.4850072,0.0002,2]
[323768693,1714266646009,-1258.06282669,0.0002,2]
[323768694,1714266646017,-2397.12589134,0.0002,2]
[323768695,1714266646026,-5172.02201971,0.0002,2]
[323768696,1714266646035,-1767.35506695,0.0002,2]
[323768697,1714266646044,-594.52371957,0.0002,2]
[323768698,1714266646054,-6222.7192671,0.0002,2]
[323768699,1714266646063,-155.0,0.0002,2]
[323768700,1714266646072,-155.0,0.0002,2]
[323768701,1714266646082,-859.88519099,0.0002,2]
[323768702,1714266646091,-186.1691007,0.0002,2]
[323768704,1714266646100,-1036.50718689,0.0002,2]
[323768707,1714266646110,-500.0,0.0002,2]
[323768709,1714266646120,-587.16,0.0002,2]
[323768711,1714266646130,-483.0,0.0002,2]
[323768713,1714266646139,-2460.13325,0.0002,2]
[323768715,1714266646148,-150.0,0.000201,2]
[323768716,1714266646157,-200.0,0.00020187,2]
[323768718,1714266646166,-179.376532,0.00020274,2]
[323768721,1714266646176,-1506.64900485,0.00020363,2]
[323768723,1714266646185,-3421.54256328,0.00020452,2]
[323768724,1714266646194,-426.12850488,0.00020459,2]
[323768726,1714266646203,-150.0,0.000205,2]
[323768729,1714266646212,-213.0,0.00020531,2]
[323768732,1714266646221,-200.0,0.00020534,2]
[323768734,1714266646230,-693.57,0.0002058,2]
[323768736,1714266646240,-150.0,0.000206,2]
[323768738,1714266646250,-1040.50038308,0.00020612,2]
[323768740,1714266646259,-150.0,0.00020617,2]
[323768742,1714266646268,-150.0,0.00020617,2]
[323768744,1714266646277,-150.0,0.00020617,2]
[323768746,1714266646286,-195.32,0.00020617,2]
[323768748,1714266646295,-150.0,0.00020617,2]
[323768750,1714266646304,-3601.73665418,0.00020735,2]
[323768752,1714266646314,-160.3639009,0.00020878,2]
[323768754,1714266646329,-200.0,0.00020882,2]
[323768756,1714266646339,-155.0,0.000209,2]
[323768758,1714266646349,-800.0,0.00020959,2]
[323768760,1714266646358,-1131.40771572,0.00020976,2]
[323768762,1714266646367,-2302.11826297,0.00020976,2]
[323768764,1714266646376,-20438.44517886,0.00020976,2]
[323768774,1714266646638,-155.0,0.00020976,2]
[323768775,1714266646648,-155.0,0.00020976,2]
[323768776,1714266646657,-1013.90044479,0.00020976,2]
[323768777,1714266646666,-212.47166625,0.00020976,2]
[323768778,1714266646676,-1244.89583407,0.00020977,2]
[323768779,1714266646685,-151.0,0.00020978,2]
[323768780,1714266646695,-151.0,0.00020978,2]
[323768781,1714266646705,-151.0,0.00020978,2]
[323768782,1714266646715,-489.174481,0.00020978,2]
[323768783,1714266646725,-489.174481,0.00020978,2]
[323768784,1714266646734,-151.0,0.00020978,2]
[323768785,1714266646743,-300.276212,0.00020978,2]
[323768786,1714266646752,-151.0,0.00020978,2]
[323768787,1714266646761,-611.378622,0.00020978,2]
[323768788,1714266646770,-611.378622,0.00020978,2]
[323768789,1714266646780,-151.0,0.00020978,2]
[323768790,1714266646789,-783.757249,0.00020978,2]
[323768791,1714266646798,-783.757249,0.00020978,2]
[323768792,1714266646808,-387.68781255,0.00020993,2]
[323768793,1714266646818,-715.91475274,0.00021,2]
[323768794,1714266646827,-158.64288058,0.00021,2]
[323768795,1714266646836,-151.0,0.00021,2]
[323768796,1714266646845,-151.0,0.00021,2]
[323768797,1714266646854,-151.0,0.00021,2]
[323768798,1714266646864,-151.0,0.00021,2]
[323768799,1714266646873,-150.0,0.00021,2]
[323768800,1714266646883,-179.376532,0.00021096,2]
[323768801,1714266646892,-151.0,0.000211,2]
[323768802,1714266646901,-150.0,0.000211,2]
[323768803,1714266646911,-158.64288049,0.00021109,2]
[323768804,1714266646921,-154.26179321,0.00021162,2]
[323768805,1714266646931,-158.64288049,0.00021218,2]
[323768806,1714266646940,-200.0,0.00021229,2]
[323768807,1714266646951,-10000.0,0.00021254,2]
[323768808,1714266646961,-158.64288049,0.00021327,2]
[323768809,1714266646970,-152.78,0.00021401,10]
[323768810,1714266646980,-158.64288049,0.00021436,2]
[323768811,1714266646989,-150.0,0.000215,3]
[323768812,1714266646999,-554.0,0.00021524,2]
[323768813,1714266647012,-158.64288049,0.00021545,2]
[323768814,1714266647026,-200.0,0.00021575,2]
[323768815,1714266647035,-150.0,0.000216,3]
[323768816,1714266647044,-1000.0,0.000216,2]
[323768817,1714266647054,-150.0,0.00021641,2]
[323768818,1714266647063,-158.64288049,0.00021654,2]
[323768819,1714266647073,-2352.13843842,0.000217,2]
[323768820,1714266647084,-554.0,0.00021746,2]
[323768821,1714266647094,-158.64288049,0.00021763,2]
[323768822,1714266647103,-168.52611107,0.00021817,2]
[323768823,1714266647113,-5101.33904738,0.00021817,2]
[323768824,1714266647122,-206.16645908,0.00021817,2]
[323768825,1714266647132,-156.20020624,0.00021817,2]
[323768826,1714266647141,-170.17431098,0.00021817,2]
[323768827,1714266647150,-158.64288049,0.00021872,2]
[323768828,1714266647160,-224.30211539,0.00021878,2]
[323768829,1714266647169,-6753.7436806,0.000219,2]
[323768830,1714266647178,-874.86754552,0.000219,14]
[323768831,1714266647188,-202.06403307,0.00021906,2]
[323768832,1714266647197,-202.06403307,0.00021906,2]
[323768833,1714266647206,-150.87,0.00021906,2]
[323768834,1714266647216,-150.87,0.00021906,2]
[323768835,1714266647226,-150.87,0.00021906,2]
[323768836,1714266647235,-150.87,0.00021906,2]
[323768837,1714266647246,-150.87,0.00021906,2]
[323768838,1714266647256,-150.87,0.00021906,2]
[323768839,1714266647265,-150.87,0.00021906,2]
[323768840,1714266647274,-150.87,0.00021906,2]
[323768841,1714266647284,-150.87,0.00021906,2]
[323768842,1714266647293,-150.87,0.00021906,2]
[323768843,1714266647302,-150.87,0.00021906,2]
[323768844,1714266647312,-150.87,0.00021906,2]
[323768845,1714266647324,-151.0,0.00021916,2]
[323768846,1714266647333,-151.0,0.00021916,2]
[323768847,1714266647343,-151.0,0.00021916,2]
[323768848,1714266647352,-255.051584,0.00021916,2]
[323768849,1714266647362,-783.757249,0.00021916,2]
[323768850,1714266647371,-783.757249,0.00021916,2]
[323768851,1714266647380,-229233.43091277,0.00021916,2]
[323768852,1714266647421,-951.76700356,0.00021916,2]
[323768853,1714266647448,-263.63284643,0.00021916,2]
[323768854,1714266647461,-3639.3868,0.00021916,2]
[323768866,1714267831866,-358.22005688,9.969e-05,2]
[323768868,1714267831878,-169.04981807,9.969e-05,2]
[323768870,1714267831887,-408.64578529,9.969e-05,2]
[323768898,1714267832156,-4890.80439664,9.969e-05,2]
[323768903,1714267832200,-1357.62885533,9.969e-05,2]
[323768905,1714267832212,-3561.65117658,9.969e-05,2]
[323768907,1714267832221,-706.80422125,9.97e-05,2]
[323768909,1714267832231,-2216.45947127,9.971e-05,2]
[323768911,1714267832241,-250.0,0.00011,2]
[323768913,1714267832251,-2258.50604972,0.00011769,2]
[323768916,1714267832261,-601.83,0.00011783,2]
[323768920,1714267832270,-150.0,0.00012178,2]
[323768922,1714267832279,-10773.70644443,0.00012179,2]
[323768924,1714267832291,-88.56635557,0.00012179,2]
[323768926,1714267832301,-232.89326776,0.00012179,2]
[323768931,1714267832340,-402.11843224,0.00012179,2]
[323768932,1714267832350,-1748.0918,0.00012179,2]
[323768933,1714267832359,-150.0,0.0001219,3]
[323768934,1714267832370,-4200.82,0.00012269,2]
[323768935,1714267832379,-171.58,0.00012269,2]
[323768936,1714267832389,-161.13589637,0.00012277,2]
[323768937,1714267832398,-320.94715381,0.00012277,2]
[323768938,1714267832407,-468.05645362,0.00012277,2]
[323768939,1714267832417,-362.04301473,0.00012277,2]
[323768940,1714267832428,-247.12844832,0.00012277,2]
[323768941,1714267832438,-155.0,0.00012277,2]
[323768942,1714267832449,-221.45,0.00012277,2]
[323768943,1714267832460,-155.4200972,0.00012278,2]
[323768944,1714267832471,-370.07799505,0.00012278,2]
[323768945,1714267832482,-2183.32123737,0.00012278,2]
[323768946,1714267832491,-1336.74812528,0.00012278,2]
[323768947,1714267832504,-3934.97385611,0.00012278,2]
[323768948,1714267832614,-544.2584,0.00012278,2]
[323768949,1714267832627,-883.54995,0.00012278,2]
[323768950,1714267832639,-846.47,0.00012278,2]
[323768951,1714267832651,-350.2299999,0.00012278,2]
[323768952,1714267832663,-3819.27393932,0.00012278,2]
[323768953,1714267832687,-7209.918168,0.00012278,2]
[323768954,1714267832700,-4421.82436164,0.00012278,2]
[323768955,1714267832711,-155.27580194,0.00012278,2]
[323768956,1714267832722,-709.66689776,0.00012278,2]
[323768957,1714267832733,-455.92631642,0.00012278,2]
[323768958,1714267832744,-157.18413346,0.00012278,2]
[323768959,1714267832756,-499.99,0.00012279,2]
[323768960,1714267832767,-154489.71376176,0.00012279,2]
[323768961,1714267832781,-9499.39207902,0.00012279,2]
[323768972,1714267838156,-19448.25839854,9.97e-05,2]
[323768973,1714267838166,-188.66440006,0.00012279,2]
[323768974,1714267838177,-1861.14473381,0.00012279,2]
[323768975,1714267838188,-50007.06452374,0.00012279,2]
[323768976,1714267838199,-28954.02050161,0.00012279,2]
[323768977,1714267838209,-12614.30813946,0.000128,2]
[323768978,1714267838218,-150.0,0.0001317,3]
[323768979,1714267838228,-150.0,0.00013329,2]
[323768980,1714267838237,-1000.0,0.00013699,2]
[323768981,1714267838247,-200.0,0.00013699,2]
[323768982,1714267838256,-500.0,0.00013699,2]
[323768984,1714267838265,-250.0,0.0001375,2]
[323768986,1714267838274,-601.83,0.00014047,2]
[323768987,1714267838283,-150.0,0.0001416,3]
[323768988,1714267838292,-154.17,0.00014617,2]
[323768989,1714267838302,-155.607837,0.00014671,2]
[323768990,1714267838311,-154.17,0.00014702,2]
[323768991,1714267838321,-154.17,0.00014787,2]
[323768992,1714267838330,-250.0,0.00014788,2]
[323768993,1714267838339,-154.17,0.00014871,2]
[323768994,1714267838349,-152.78,0.00014892,10]
[323768995,1714267838359,-6706.08501999,0.000149,2]
[323768996,1714267838368,-2664.91,0.00014903,2]
[323768997,1714267838378,-154.17,0.00014956,2]
[323768998,1714267838387,-617.5373056,0.00015,2]
[323769000,1714267838397,-1153.0,0.00015,2]
[323769002,1714267838406,-224.86,0.00015022,2]
[323769003,1714267838415,-154.17,0.00015041,2]
[323769004,1714267838426,-154.17,0.00015125,2]
[323769005,1714267838435,-150.0,0.0001514,3]
[323769006,1714267838444,-154.17,0.0001521,2]
[323769007,1714267838453,-154.17,0.00015294,2]
[323769008,1714267838462,-154.17,0.00015379,2]
[323769009,1714267838471,-10000.0,0.00015939,2]
[323769010,1714267838480,-150.0,0.0001612,3]
[323769011,1714267838490,-601.83,0.00016311,2]
[323769012,1714267838501,-613.43245461,0.00016412,2]
[323769013,1714267838510,-1224.15650396,0.000165,2]
[323769014,1714267838520,-154.26179322,0.00016847,2]
[323769015,1714267838529,-1059.771,0.00016932,2]
[323769016,1714267838538,-2751.0,0.00016976,2]
[323769017,1714267838547,-613.43245461,0.00017092,2]
[323769018,1714267838557,-150.0,0.0001711,3]
[323769019,1714267838566,-613.43245461,0.00017156,2]
[323769020,1714267838575,-613.43245461,0.00017201,2]
[323769021,1714267838585,-613.43245461,0.00017402,2]
[323769022,1714267838594,-613.43245461,0.00017417,2]
[323769023,1714267838602,-321.18136101,0.0001788,2]
[323769024,1714267838611,-613.43245461,0.00017892,2]
[323769025,1714267838621,-1662.99753846,0.00018,2]
[323769026,1714267838630,-1000.0,0.00018,2]
[323769027,1714267838639,-613.43245461,0.00018001,2]
[323769028,1714267838649,-613.43245461,0.00018018,2]
[323769029,1714267838658,-150.0,0.0001809,3]
[323769030,1714267838668,-613.43245461,0.00018335,2]
[323769031,1714267838679,-3565.87,0.00018542,2]
[323769032,1714267838689,-601.83,0.00018575,2]
[323769033,1714267838699,-10013.17220653,0.00018795,2]
[323769034,1714267838707,-186.51,0.00018978,2]
[323769035,1714267838716,-214.17350564,0.00019,2]
[323769036,1714267838726,-150.0,0.0001908,3]
[323769037,1714267838735,-239.71985529,0.00019178,2]
[323769038,1714267838745,-4000.0,0.00019178,2]
[323769039,1714267838756,-506.45,0.00019401,2]
[323769040,1714267838765,-613.43245461,0.00019885,2]
[323769041,1714267838775,-3188.39830876,0.00019888,2]
[323769042,1714267838784,-300.0,0.00019889,2]
[323769043,1714267838793,-213.0,0.0001989,2]
[323769044,1714267838802,-155.5831373,0.00019988,2]
[323769045,1714267838811,-171.58,0.0001999,2]
[323769046,1714267838821,-155.0,0.0002,2]
[323769047,1714267838831,-1767.35506695,0.0002,2]
[323769048,1714267838843,-5172.02201971,0.0002,2]
[323769049,1714267838853,-186.1691007,0.0002,2]
[323769050,1714267838863,-155.0,0.0002,2]
[323769051,1714267838872,-6222.7192671,0.0002,2]
[323769052,1714267838881,-859.88519099,0.0002,2]
[323769053,1714267838890,-1258.06282669,0.0002,2]
[323769054,1714267838900,-64037.53481015,0.0002,2]
[323769055,1714267838909,-5351.12356771,0.0002,2]
[323769056,1714267838918,-150.0,0.0002006,3]
[323769057,1714267838928,-613.43245461,0.00020088,2]
[323769058,1714267838937,-413.76,0.00020219,2]
[323769059,1714267838946,-910.83,0.00020219,2]
[323769060,1714267838956,-922.5,0.00020219,2]
[323769061,1714267838966,-613.43245461,0.00020336,2]
[323769062,1714267838976,-167.0,0.00020361,2]
[323769063,1714267838986,-613.43245461,0.00020438,2]
[323769064,1714267838996,-150.0,0.000205,2]
[323769065,1714267839006,-224.86,0.00020501,2]
[323769066,1714267839015,-1080.0,0.000206,2]
[323769067,1714267839025,-613.43245461,0.00020724,2]
[323769068,1714267839034,-200.0,0.0002079,2]
[323769069,1714267839043,-323.85652974,0.00020818,2]
[323769070,1714267839052,-155.0,0.0002082,2]
[323769071,1714267839061,-601.83,0.00020839,2]
[323769072,1714267839070,-155.0,0.000209,2]
[323769073,1714267839079,-699.52,0.00020904,2]
[323769074,1714267839088,-703.07,0.00020904,2]
[323769075,1714267839097,-418.1,0.00020904,2]
[323769076,1714267839106,-169.59,0.00020904,2]
[323769077,1714267839115,-613.43245461,0.00020992,2]
[323769078,1714267839125,-715.91475274,0.00021,2]
[323769079,1714267839134,-599.9999995,0.00021,22]
[323769080,1714267839143,-150.0,0.00021,2]
[323769081,1714267839152,-167.0,0.00021033,2]
[323769082,1714267839161,-500.0,0.000211,2]
[323769083,1714267839170,-500.0,0.000211,2]
[323769084,1714267839180,-500.0,0.000211,2]
[323769085,1714267839189,-500.0,0.000211,2]
[323769086,1714267839198,-500.0,0.000211,2]
[323769087,1714267839207,-500.0,0.000211,2]
[323769088,1714267839216,-500.0,0.000211,2]
[323769089,1714267839226,-500.0,0.000211,2]
[323769090,1714267839235,-900.94,0.00021178,2]
[323769091,1714267839244,-613.43245461,0.00021207,2]
[323769092,1714267839256,-613.43245461,0.00021455,2]
[323769093,1714267839266,-150.0,0.0002149,2]
[323769094,1714267839275,-150.0,0.0002149,2]
[323769095,1714267839284,-150.0,0.0002149,2]
[323769096,1714267839293,-613.43245461,0.00021497,2]
[323769097,1714267839301,-150.0,0.000215,3]
[323769098,1714267839311,-613.43245461,0.00021671,2]
[323769099,1714267839319,-162.9,0.00021671,2]
[323769100,1714267839328,-162.9,0.00021671,2]
[323769101,1714267839336,-162.9,0.00021671,2]
[323769102,1714267839345,-162.7,0.00021671,2]
[323769103,1714267839354,-613.43245461,0.00021676,2]
[323769104,1714267839363,-171.61750529,0.00021696,2]
[323769105,1714267839371,-167.0,0.00021705,2]
[323769106,1714267839380,-205.0,0.0002171,2]
[323769107,1714267839389,-200.0,0.0002174,2]
[323769108,1714267839398,-1000.0,0.0002174,2]
[323769109,1714267839407,-500.0,0.0002174,2]
[323769110,1714267839416,-200.0,0.0002174,2]
[323769111,1714267839425,-200.0,0.0002174,2]
[323769112,1714267839434,-200.0,0.0002174,2]
[323769113,1714267839443,-200.0,0.0002174,2]
[323769114,1714267839452,-200.0,0.0002174,2]
[323769115,1714267839460,-200.0,0.0002174,2]
[323769116,1714267839470,-200.0,0.0002174,2]
[323769117,1714267839480,-200.0,0.00021741,2]
[323769118,1714267839489,-200.0,0.00021741,2]
[323769119,1714267839500,-200.0,0.00021741,2]
[323769120,1714267839509,-200.0,0.00021741,2]
[323769121,1714267839518,-200.0,0.00021741,2]
[323769122,1714267839527,-200.0,0.00021741,2]
[323769123,1714267839536,-200.0,0.00021741,2]
[323769124,1714267839545,-1000.0,0.00021741,2]
[323769125,1714267839555,-287.125441,0.00021741,2]
[323769126,1714267839564,-500.0,0.00021741,2]
[323769127,1714267839574,-200.0,0.00021741,2]
[323769128,1714267839584,-200.0,0.00021741,2]
[323769129,1714267839593,-200.0,0.00021741,2]
[323769130,1714267839603,-200.0,0.00021741,2]
[323769131,1714267839612,-200.0,0.00021741,2]
[323769132,1714267839622,-171.34701633,0.00021816,2]
[323769133,1714267839631,-151.17733341,0.00021816,2]
[323769134,1714267839641,-43918.6817,0.00021816,2]
[323769135,1714267839650,-1091.5843,0.00021816,2]
[323769136,1714267839662,-10000.0,0.00021817,2]
[323769137,1714267839678,-1000.0,0.00021817,2]
[323769138,1714267839688,-157.8313531,0.00021817,2]
[323769139,1714267839697,-208.32208164,0.00021817,2]
[323769140,1714267839706,-5919.3441751,0.00021817,2]
[323769141,1714267839716,-18679.63068026,0.00021817,2]
[323769142,1714267839725,-470.90087346,0.00021817,4]
[323769143,1714267839734,-506.45,0.00021826,2]
[323769145,1714267839743,-156.84423319,0.0002186,2]
[323769146,1714267839755,-151.17733317,0.00021862,2]
[323769148,1714267839765,-150.94,0.00021893,2]
[323769150,1714267839774,-171.58,0.00021893,2]
[323769151,1714267839784,-6753.7436806,0.000219,2]
[323769152,1714267839793,-150.0,0.000219,2]
[323769153,1714267839802,-67384.7795433,0.00021903,2]
[323769154,1714267839811,-6647.8560423,0.00021903,2]
[323769155,1714267839821,-8612.7429753,0.00021903,2]
[323769156,1714267839830,-285.33207752,0.00021903,2]
[323769157,1714267839839,-171.58,0.00021905,2]
[323769158,1714267839849,-150.94,0.00021906,2]
[323769159,1714267839858,-171.58,0.00021906,2]
[323769160,1714267839867,-171.58,0.00021906,2]
[323769161,1714267839876,-150.94,0.00021907,2]
[323769162,1714267839885,-150.94,0.00021907,2]
[323769163,1714267839894,-150.94,0.00021907,2]
[323769165,1714267839903,-150.94,0.00021907,2]
[323769166,1714267839913,-150.94,0.00021907,2]
[323769167,1714267839924,-150.94,0.00021907,2]
[323769168,1714267839933,-150.94,0.00021907,2]
[323769169,1714267839944,-171.58,0.00021907,2]
[323769170,1714267839953,-171.58,0.00021907,2]
[323769171,1714267839963,-171.58,0.00021907,2]
[323769172,1714267839973,-171.58,0.00021907,2]
[323769173,1714267839984,-151.17733317,0.00021907,2]
[323769174,1714267839994,-15719.96839162,0.00021914,2]
[323769175,1714267840006,-155.0,0.00021914,2]
[323769176,1714267840015,-301.79337808,0.00021914,2]
[323769177,1714267840024,-183.06147275,0.00021914,2]
[323769178,1714267840033,-435.3273933,0.00021914,2]
[323769179,1714267840042,-1882.67311568,0.00021914,2]
[323769180,1714267840051,-365.48043522,0.00021914,2]
[323769181,1714267840060,-295.58532943,0.00021914,2]
[323769182,1714267840069,-166.73820212,0.00021914,3]
[323769183,1714267840078,-240.99374727,0.00021915,2]
[323769184,1714267840089,-178.06315669,0.00021915,2]
[323769185,1714267840098,-5847.20324844,0.00021915,2]
[323769186,1714267840109,-278686.7472692,0.00021915,2]
[323769187,1714267840119,-521.19857,0.00021915,2]
[323769188,1714267840129,-521.19857,0.00021915,2]
[323769189,1714267840138,-151.0,0.00021915,2]
[323769190,1714267840150,-151.0,0.00021915,2]
[323769191,1714267840160,-799.45269532,0.00021915,2]
[323769192,1714267840170,-578.0,0.00021916,2]
[323769193,1714267840179,-967.06915176,0.00021916,2]
[323769194,1714267840188,-20978.3731602,0.00021916,2]
[323769195,1714267840486,-729.310969,0.00021916,2]
[323769197,1714267840981,-321.18136101,0.0001788,2]
[323769198,1714267840991,-794.0,0.00021524,2]
[323769199,1714267841003,-794.0,0.00021746,2]
[323769200,1714267841012,-18282.46803051,0.00021916,2]
[323769201,1714267841022,-167.4850072,0.00021916,2]
[323769202,1714267841032,-1036.50718689,0.00021916,2]
[323769203,1714267841042,-7641.65819965,0.00021916,2]
[323769204,1714267841051,-500.0,0.00021916,2]
[323769205,1714267841061,-155.0,0.00021916,2]
[323769206,1714267841070,-1997.60490945,0.00021916,2]
[323769207,1714267841080,-867.86582365,0.00021916,2]
[323769208,1714267841090,-495.43643298,0.00021916,2]
[323769209,1714267841324,-1013.14548428,0.00021916,2]
[323769210,1714267841336,-167634.13492565,0.00021916,2]
[323769211,1714267841347,-4256.83037493,0.00021916,2]